bitfinex/quotes_SOLUSD_20251118
["timestamp","ask_amount","ask_price","bid_price","bid_amount"]
[1763454058076,18.12096,137.77,137.71,0.7]
[1763454058272,12.98813964,137.75,137.71,0.7]
[1763454058478,12.98813964,137.76,137.71,0.7]
[1763454058679,12.98813964,137.76,137.71,13.68813964]
[1763454058878,31.10909964,137.77,137.72,12.98813964]
[1763454059180,12.98813964,137.76,137.72,0.7]
[1763454059393,12.98813964,137.76,137.73,0.7]
[1763454060372,12.98813964,137.75,137.71,0.7]
[1763454060577,12.98813964,137.75,137.7,12.98813964]
[1763454060779,12.98813964,137.75,137.72,0.7]
[1763454061078,6.79694715,137.89,137.75,9.78882769]
[1763454061279,12.98813964,137.86,137.81,12.98813964]
[1763454061497,12.98813964,137.87,137.82,13.68813964]
[1763454061687,31.10909964,137.87,137.82,13.68813964]
[1763454061998,12.98813964,137.87,137.83,0.7]
[1763454062207,12.98813964,137.85,137.79,0.7]
[1763454062374,12.98813964,137.82,137.79,0.7]
[1763454063199,11.98882769,137.89,137.8,22.77696733]
[1763454063200,0.2,137.89,137.8,22.77696733]
[1763454063387,12.98813964,137.87,137.82,12.98813964]
[1763454063784,0.2,137.89,137.83,13.68813964]
[1763454063979,12.98813964,137.87,137.83,0.7]
[1763454064176,0.2,137.89,137.84,13.68813964]
[1763454064396,0.2,137.89,137.85,12.98813964]
[1763454064701,0.2,137.89,137.88,12.98813964]
[1763454064871,0.2,137.89,137.88,13.68813964]
[1763454065297,0.2,137.89,137.87,12.98813964]
[1763454065501,12.98813964,137.88,137.83,0.7]
[1763454065705,12.98813964,137.88,137.84,0.7]
[1763454066197,13.18813964,137.89,137.84,0.7]
[1763454066501,12.98813964,137.88,137.84,0.7]
[1763454066700,0.2,137.89,137.84,0.7]
[1763454066701,12.98813964,137.87,137.84,0.7]
[1763454066897,12.98813964,137.86,137.82,0.7]
[1763454067299,12.98813964,137.84,137.77,18.12096]
[1763454067489,12.98813964,137.85,137.8,13.68813964]
[1763454067798,0.2,137.89,137.81,12.98813964]
[1763454067799,12.98813964,137.86,137.81,12.98813964]
[1763454068002,12.98813964,137.86,137.81,13.68813964]
[1763454068189,12.98813964,137.86,137.82,0.7]
[1763454068386,12.98813964,137.87,137.82,13.68813964]
[1763454068692,31.30909964,137.89,137.84,12.98813964]
[1763454068892,31.30909964,137.89,137.85,0.7]
[1763454069099,12.98813964,137.87,137.82,13.68813964]
[1763454069409,12.98813964,137.86,137.82,0.7]
[1763454069724,12.98813964,137.86,137.83,0.7]
[1763454070614,12.98813964,137.84,137.78,0.7]
[1763454070912,9.78882769,137.88,137.78,0.7]
[1763454070913,12.98813964,137.81,137.78,0.7]
[1763454071082,12.98813964,137.79,137.76,0.7]
[1763454071282,18.12096,137.82,137.62,8.12245758]
[1763454071283,12.98813964,137.77,137.72,12.98813964]
[1763454071490,18.12096,137.82,137.73,0.7]
[1763454071491,12.98813964,137.75,137.73,0.7]
[1763454071782,18.12096,137.78,137.61,39.59719795]
[1763454071783,12.98813964,137.74,137.68,12.98813964]
[1763454071987,18.12096,137.76,137.68,12.98813964]
[1763454072229,12.98813964,137.71,137.66,12.98813964]
[1763454072378,12.98813964,137.71,137.67,0.71]
[1763454072793,31.10909964,137.7,137.64,13.69813964]
[1763454073291,12.98813964,137.69,137.64,0.71]
[1763454073496,12.98813964,137.66,137.62,0.71]
[1763454073705,12.98813964,137.65,137.6,12.98813964]
[1763454073906,18.12096,137.69,137.6,12.98813964]
[1763454074097,12.98813964,137.66,137.61,13.69813964]
[1763454074300,12.98813964,137.66,137.62,0.71]
[1763454074497,18.12096,137.67,137.62,13.69813964]
[1763454074688,12.98813964,137.7,137.65,12.98813964]
[1763454075189,18.12096,137.69,137.66,13.69813964]
[1763454075519,9.78882769,137.79,137.68,12.98813964]
[1763454075678,12.98813964,137.73,137.68,12.98813964]
[1763454076002,12.98813964,137.72,137.67,13.69813964]
[1763454076208,18.12096,137.73,137.69,12.98813964]
[1763454076421,12.98813964,137.77,137.72,12.98813964]
[1763454076774,12.98813964,137.77,137.72,0.71]
[1763454076978,12.98813964,137.76,137.72,0.71]
[1763454077174,18.12096,137.79,137.72,0.71]
[1763454077378,12.98813964,137.77,137.72,13.69813964]
[1763454077802,12.98813964,137.76,137.7,12.98813964]
[1763454078008,12.98813964,137.76,137.72,0.71]
[1763454078206,12.98813964,137.77,137.72,13.69813964]
[1763454078393,9.78882769,137.82,137.73,0.71]
[1763454078394,12.98813964,137.78,137.73,0.71]
[1763454078708,12.98813964,137.79,137.73,0.71]
[1763454078887,12.98813964,137.79,137.74,12.98813964]
[1763454079080,12.98813964,137.79,137.73,0.71]
[1763454079081,12.98813964,137.79,137.73,13.69813964]
[1763454079611,12.98813964,137.76,137.71,0.7]
[1763454079815,12.98813964,137.75,137.71,0.7]
[1763454079985,18.12096,137.75,137.71,0.7]
[1763454080184,31.10909964,137.75,137.71,0.7]
[1763454080499,12.98813964,137.74,137.69,13.68813964]
[1763454080807,31.10909964,137.75,137.7,0.7]
[1763454081182,12.98813964,137.74,137.7,0.7]
[1763454081386,18.12096,137.75,137.6,19.02540845]
[1763454081387,31.10909964,137.72,137.67,0.7]
[1763454081603,31.10909964,137.72,137.67,13.68813964]
[1763454081994,12.98813964,137.71,137.68,0.7]
[1763454082189,12.98813964,137.8,137.7,12.98813964]
[1763454082501,12.98813964,137.75,137.69,12.98813964]
[1763454082694,12.98813964,137.75,137.7,13.68813964]
[1763454082891,7.45065195,137.77,137.71,7.45065195]
[1763454083100,7.45065195,137.77,137.71,8.15065195]
[1763454083299,7.45065195,137.76,137.71,8.15065195]
[1763454083507,7.45065195,137.76,137.72,0.7]
[1763454084627,7.45065195,137.73,137.69,0.7]
[1763454084792,25.57161195,137.75,137.69,8.15065195]
[1763454085119,7.45065195,137.74,137.69,8.15065195]
[1763454085292,7.45065195,137.74,137.69,7.45065195]
[1763454085485,18.12096,137.75,137.71,7.45065195]
[1763454085688,25.57161195,137.75,137.7,8.15065195]
[1763454085998,7.45065195,137.76,137.71,8.15065195]
[1763454086192,18.12096,137.79,137.72,7.45065195]
[1763454086507,7.45065195,137.75,137.69,17.93947964]
[1763454086690,18.12096,137.79,137.7,0.7]
[1763454086891,7.45065195,137.75,137.7,0.7]
[1763454087295,7.45065195,137.75,137.7,8.15065195]
[1763454087493,7.45065195,137.75,137.7,0.7]
[1763454087695,7.45065195,137.75,137.71,0.7]
[1763454087895,7.45065195,137.74,137.69,8.15065195]
[1763454088116,7.45065195,137.73,137.69,0.7]
[1763454088422,25.57161195,137.74,137.69,0.7]
[1763454088708,25.57161195,137.74,137.67,9.78882769]
[1763454088709,7.45065195,137.75,137.7,8.15065195]
[1763454088912,7.45065195,137.75,137.7,0.7]
[1763454089103,7.45065195,137.75,137.71,0.7]
[1763454089719,18.12096,137.76,137.71,8.15065195]
[1763454089925,102.7,137.83,137.67,27.90978769]
[1763454089926,7.45065195,137.8,137.74,7.45065195]
[1763454090216,25.57161195,137.81,137.75,7.45065195]
[1763454090597,25.57161195,137.81,137.76,0.7]
[1763454090794,25.57161195,137.81,137.75,7.45065195]
[1763454090795,7.45065195,137.79,137.73,0.7]
[1763454090993,7.45065195,137.78,137.73,0.7]
[1763454091188,7.45065195,137.77,137.73,0.7]
[1763454091611,7.45065195,137.76,137.71,0.7]
[1763454091815,7.45065195,137.76,137.72,0.7]
[1763454092321,7.45065195,137.77,137.72,0.7]
[1763454092539,7.45065195,137.76,137.72,0.7]
[1763454092711,18.12096,137.81,137.7,7.45065195]
[1763454092712,7.45065195,137.75,137.7,7.45065195]
[1763454092909,7.45065195,137.75,137.69,7.45065195]
[1763454093109,7.45065195,137.75,137.7,7.45065195]
[1763454093337,18.12096,137.76,137.7,7.45065195]
[1763454093338,25.57161195,137.76,137.7,8.15065195]
[1763454093645,7.45065195,137.75,137.71,0.7]
[1763454094036,9.78882769,137.82,137.71,8.15065195]
[1763454094037,7.45065195,137.76,137.71,8.15065195]
[1763454094224,9.78882769,137.82,137.71,8.15065195]
[1763454094225,18.12096,137.79,137.72,7.45065195]
[1763454094425,7.45065195,137.78,137.72,7.96265195]
[1763454094632,7.45065195,137.78,137.73,0.7]
[1763454095422,7.45065195,137.78,137.73,8.15065195]
[1763454095813,25.57161195,137.79,137.74,0.7]
[1763454096531,18.12096,137.79,137.74,8.15065195]
[1763454096837,18.12096,137.79,137.75,0.7]
[1763454097010,25.57161195,137.79,137.75,0.7]
[1763454097642,18.12096,137.79,137.75,0.7]
[1763454098342,25.57161195,137.79,137.75,0.7]
[1763454100434,25.57161195,137.79,137.73,8.15065195]
[1763454100641,7.45065195,137.78,137.73,0.7]
[1763454100825,7.45065195,137.77,137.73,0.7]
[1763454101229,7.45065195,137.75,137.7,0.7]
[1763454103220,7.45065195,137.74,137.7,0.69]
[1763454104149,7.45065195,137.72,137.67,0.69]
[1763454104333,7.45065195,137.72,137.67,8.14065195]
[1763454104518,7.45065195,137.72,137.67,0.69]
[1763454104726,7.45065195,137.68,137.65,0.69]
[1763454104956,7.45065195,137.68,137.57,69.13710524]
[1763454104957,7.45065195,137.67,137.63,0.69]
[1763454105665,18.12096,137.7,137.63,0.69]
[1763454105838,7.45065195,137.67,137.63,0.69]
[1763454106442,2.0,137.77,137.66,7.45065195]
[1763454106636,7.45065195,137.72,137.66,7.45065195]
[1763454106875,7.45065195,137.72,137.66,8.14065195]
[1763454107051,18.12096,137.75,137.67,0.69]
[1763454107239,7.45065195,137.72,137.67,0.69]
[1763454107444,7.45065195,137.71,137.67,0.69]
[1763454107858,7.45065195,137.69,137.65,0.69]
[1763454108259,7.45065195,137.7,137.65,0.69]
[1763454108452,7.45065195,137.71,137.65,8.14065195]
[1763454108768,7.45065195,137.66,137.57,6.13710524]
[1763454108944,27.90978769,137.77,137.58,0.69]
[1763454109146,9.78882769,137.77,137.69,7.45065195]
[1763454109348,7.45065195,137.76,137.71,7.45065195]
[1763454109547,7.45065195,137.77,137.71,7.45065195]
[1763454110046,7.45065195,137.77,137.71,8.14065195]
[1763454110260,7.45065195,137.76,137.71,0.69]
[1763454111048,7.45065195,137.75,137.66,9.78882769]
[1763454111261,7.45065195,137.75,137.69,8.14065195]
[1763454111660,7.45065195,137.75,137.7,0.69]
[1763454111968,7.45065195,137.74,137.7,0.69]
[1763454112968,7.45065195,137.75,137.7,0.69]
[1763454113176,7.45065195,137.74,137.7,0.69]
[1763454114852,7.45065195,137.74,137.67,0.69]
[1763454114853,7.45065195,137.71,137.67,0.69]
[1763454115060,7.45065195,137.7,137.63,7.45065195]
[1763454115272,7.45065195,137.68,137.62,7.45065195]
[1763454115562,18.12096,137.7,137.62,8.14065195]
[1763454115765,7.45065195,137.68,137.63,0.69]
[1763454117088,18.12096,137.71,137.63,0.69]
[1763454117398,7.45065195,137.68,137.63,0.69]
[1763454117606,7.45065195,137.67,137.63,0.69]
[1763454117893,7.45065195,137.68,137.63,0.69]
[1763454118469,18.12096,137.71,137.63,0.69]
[1763454118775,7.45065195,137.68,137.63,0.69]
[1763454118985,7.45065195,137.67,137.63,0.69]
[1763454119180,18.12096,137.71,137.56,0.1]
[1763454119181,18.12096,137.63,137.56,0.1]
[1763454119364,7.45065195,137.64,137.56,0.1]
[1763454119365,18.12096,137.64,137.57,0.79]
[1763454119684,7.45065195,137.68,137.58,9.78882769]
[1763454119685,7.45065195,137.63,137.58,9.78882769]
[1763454120067,7.45065195,137.63,137.59,0.69]
[1763454120399,18.12096,137.65,137.57,0.1]
[1763454120400,18.12096,137.62,137.57,0.1]
[1763454120698,18.12096,137.64,137.58,0.69]
[1763454121006,7.45065195,137.61,137.57,0.1]
[1763454121205,18.12096,137.64,137.57,0.1]
[1763454121206,7.45065195,137.58,137.57,0.1]
[1763454121574,9.78882769,137.64,137.57,0.1]
[1763454121769,7.45065195,137.58,137.57,0.1]
[1763454122578,25.57161195,137.58,137.57,0.1]
[1763454123104,7.45065195,137.58,137.57,0.1]
[1763454123282,25.57161195,137.58,137.57,0.1]
[1763454125212,18.12096,137.58,137.57,0.1]
[1763454125496,7.45065195,137.59,137.57,0.79]
[1763454125802,7.45065195,137.58,137.57,0.1]
[1763454126999,18.12096,137.61,137.57,0.79]
[1763454127406,7.45065195,137.59,137.57,0.1]
[1763454127607,7.45065195,137.58,137.57,0.1]
[1763454129291,7.45065195,137.61,137.57,0.79]
[1763454129604,7.45065195,137.6,137.57,0.79]
[1763454130386,18.12096,137.62,137.57,0.79]
[1763454130589,7.45065195,137.62,137.57,0.79]
[1763454130812,18.12096,137.64,137.57,0.79]
[1763454131122,7.45065195,137.62,137.57,0.79]
[1763454131626,7.45065195,137.61,137.57,0.79]
[1763454131788,7.45065195,137.61,137.57,0.1]
[1763454131789,7.45065195,137.58,137.57,0.1]
[1763454131988,25.57161195,137.58,137.57,0.1]
[1763454132438,7.45065195,137.6,137.57,0.79]
[1763454132888,7.45065195,137.59,137.57,0.79]
[1763454133090,18.12096,137.61,137.57,0.79]
[1763454133091,7.45065195,137.6,137.57,0.79]
[1763454133313,25.57161195,137.61,137.57,0.79]
[1763454133731,7.45065195,137.6,137.57,0.79]
[1763454134726,7.45065195,137.59,137.57,0.79]
[1763454135534,7.45065195,137.59,137.57,0.1]
[1763454135733,7.45065195,137.58,137.57,0.1]
[1763454136147,25.57161195,137.58,137.57,0.1]
[1763454136323,7.45065195,137.58,137.57,0.1]
[1763454136867,17.23947964,137.58,137.57,0.1]
[1763454137239,2.91811052,137.63,137.57,0.1]
[1763454137543,25.57161195,137.58,137.57,0.1]
[1763454137955,17.23947964,137.58,137.57,0.1]
[1763454138143,25.57161195,137.58,137.57,0.1]
[1763454138458,7.45065195,137.58,137.57,0.1]
[1763454142342,18.12096,137.59,137.57,0.1]
[1763454142561,7.45065195,137.58,137.57,0.1]
[1763454142862,13.00811191,137.58,137.57,0.1]
[1763454143251,18.12096,137.59,137.57,0.1]
[1763454143446,13.00811191,137.59,137.57,0.8]
[1763454143646,13.00811191,137.59,137.57,0.1]
[1763454144044,9.78882769,137.66,137.58,0.7]
[1763454144257,13.00811191,137.6,137.58,0.7]
[1763454144940,13.00811191,137.59,137.57,0.1]
[1763454145139,13.00811191,137.59,137.57,0.8]
[1763454145849,13.00811191,137.58,137.57,0.8]
[1763454146360,13.00811191,137.58,137.57,0.1]
[1763454147461,22.7969396,137.58,137.57,0.1]
[1763454147756,22.7969396,137.58,137.55,0.1]
[1763454147757,11.78882769,137.56,137.55,0.1]
[1763454147950,15.00811191,137.56,137.53,0.1]
[1763454148137,40.9178996,137.54,137.53,0.1]
[1763454148333,22.7969396,137.54,137.53,0.1]
[1763454149166,22.7969396,137.54,137.49,0.1]
[1763454149167,40.9178996,137.54,137.49,0.1]
[1763454149469,27.90978769,137.51,137.49,0.1]
[1763454149641,31.12907191,137.51,137.49,0.1]
[1763454149843,13.00811191,137.51,137.5,0.8]
[1763454150043,9.78882769,137.56,137.5,0.8]
[1763454150367,13.00811191,137.53,137.5,0.8]
[1763454150778,13.00811191,137.51,137.5,0.1]
[1763454151142,13.00811191,137.53,137.5,0.1]
[1763454151343,20.31341206,137.75,137.5,0.1]
[1763454151344,2.0,137.63,137.51,0.7]
[1763454151586,13.00811191,137.56,137.51,0.7]
[1763454151752,13.00811191,137.54,137.51,0.7]
[1763454152585,13.00811191,137.52,137.5,0.1]
[1763454152876,18.12096,137.51,137.5,0.1]
[1763454153266,31.12907191,137.51,137.5,0.1]
[1763454155263,18.12096,137.51,137.5,0.1]
[1763454155475,13.00811191,137.53,137.5,0.8]
[1763454155673,31.12907191,137.54,137.5,0.8]
[1763454159187,13.00811191,137.57,137.51,13.00811191]
[1763454159682,18.12096,137.57,137.52,0.7]
[1763454160180,31.12907191,137.57,137.52,0.7]
[1763454160377,13.00811191,137.54,137.5,0.1]
[1763454160685,13.00811191,137.54,137.5,0.8]
[1763454161066,31.12907191,137.55,137.5,0.8]
[1763454161686,13.00811191,137.54,137.5,0.8]
[1763454162208,13.00811191,137.51,137.5,0.1]
[1763454162483,22.7969396,137.51,137.5,0.1]
[1763454163587,35.80505151,137.51,137.5,0.1]
[1763454164089,9.78882769,137.5,137.49,0.1]
[1763454164288,27.90978769,137.5,137.49,0.1]
[1763454164470,40.9178996,137.5,137.49,0.1]
[1763454165107,18.12096,137.51,137.49,0.1]
[1763454165287,13.00811191,137.52,137.49,0.78]
[1763454165680,13.00811191,137.51,137.49,0.78]
[1763454166579,31.12907191,137.52,137.49,0.78]
[1763454167103,13.00811191,137.53,137.49,0.78]
[1763454167397,18.12096,137.53,137.49,0.78]
[1763454167603,13.00811191,137.55,137.49,13.78811191]
[1763454167912,13.00811191,137.55,137.49,0.78]
[1763454168213,13.00811191,137.53,137.5,0.68]
[1763454168377,13.00811191,137.54,137.5,0.68]
[1763454168580,13.00811191,137.53,137.5,0.68]
[1763454168802,13.00811191,137.52,137.49,0.1]
[1763454169078,13.00811191,137.51,137.49,0.78]
[1763454169308,13.00811191,137.5,137.49,0.1]
[1763454169682,31.12907191,137.5,137.49,0.1]
[1763454170003,18.12096,137.5,137.49,0.1]
[1763454170323,40.9178996,137.5,137.49,0.1]
[1763454170497,22.7969396,137.5,137.49,0.1]
[1763454171293,18.12096,137.5,137.49,0.1]
[1763454171606,31.12907191,137.5,137.49,0.1]
[1763454172306,40.9178996,137.5,137.49,0.1]
[1763454174709,13.00811191,137.5,137.49,0.78]
[1763454174893,13.00811191,137.51,137.49,0.78]
[1763454175205,31.12907191,137.5,137.49,0.1]
[1763454175407,9.78882769,137.53,137.49,0.1]
[1763454175408,13.00811191,137.51,137.49,0.1]
[1763454175585,13.00811191,137.52,137.49,0.78]
[1763454175790,13.00811191,137.54,137.49,13.78811191]
[1763454175985,18.12096,137.51,137.49,0.78]
[1763454176214,13.00811191,137.51,137.49,0.1]
[1763454176381,13.00811191,137.53,137.49,0.78]
[1763454176582,31.12907191,137.53,137.49,0.78]
[1763454176902,18.12096,137.5,137.49,0.78]
[1763454177592,13.00811191,137.51,137.49,0.78]
[1763454177799,13.00811191,137.52,137.49,0.78]
[1763454178495,13.00811191,137.51,137.49,0.78]
[1763454178904,18.12096,137.53,137.49,0.78]
[1763454179109,13.00811191,137.52,137.49,0.78]
[1763454179300,18.12096,137.53,137.49,0.78]
[1763454179506,31.12907191,137.53,137.49,0.78]
[1763454179684,13.00811191,137.52,137.49,0.78]
[1763454180299,16.48137852,137.61,137.49,0.78]
[1763454180504,16.48137852,137.61,137.5,13.00811191]
[1763454180505,15.86690399,137.6,137.5,13.00811191]
[1763454180706,9.78882769,137.6,137.52,13.00811191]
[1763454180914,13.00811191,137.58,137.52,13.00811191]
[1763454181114,31.12907191,137.57,137.53,0.68]
[1763454181406,9.78882769,137.6,137.53,0.68]
[1763454181607,31.12907191,137.57,137.53,0.68]
[1763454182126,13.00811191,137.56,137.53,0.68]
[1763454182303,13.00811191,137.55,137.49,13.10811191]
[1763454182517,13.00811191,137.55,137.51,0.68]
[1763454182826,13.00811191,137.56,137.51,0.68]
[1763454182998,13.00811191,137.55,137.51,0.68]
[1763454183425,18.12096,137.57,137.51,13.68811191]
[1763454183426,31.12907191,137.57,137.51,13.68811191]
[1763454183732,102.7,137.62,137.55,13.00811191]
[1763454184031,13.00811191,137.62,137.56,13.00811191]
[1763454184233,13.00811191,137.63,137.57,13.00811191]
[1763454184435,13.00811191,137.64,137.59,13.00811191]
[1763454184636,4.00446864,137.68,137.6,13.00811191]
[1763454184815,13.00811191,137.67,137.62,13.00811191]
[1763454185010,13.20811191,137.68,137.63,0.68]
[1763454185334,18.12096,137.67,137.6,0.68]
[1763454185512,13.00811191,137.66,137.6,13.68811191]
[1763454185702,13.00811191,137.65,137.6,13.68811191]
[1763454185905,31.12907191,137.64,137.6,0.68]
[1763454186106,18.12096,137.64,137.61,0.68]
[1763454186342,13.00811191,137.66,137.61,0.68]
[1763454186535,13.00811191,137.67,137.61,13.68811191]
[1763454186826,0.2,137.68,137.57,0.68]
[1763454186827,13.00811191,137.62,137.57,0.68]
[1763454187004,31.12907191,137.62,137.57,13.68811191]
[1763454187207,0.2,137.68,137.57,13.68811191]
[1763454187208,13.00811191,137.63,137.58,13.00811191]
[1763454187429,13.00811191,137.61,137.58,0.68]
[1763454187841,13.00811191,137.62,137.58,0.68]
[1763454188359,13.00811191,137.63,137.58,0.68]
[1763454188850,18.12096,137.64,137.59,13.00811191]
[1763454189219,18.12096,137.64,137.6,0.68]
[1763454189411,31.12907191,137.64,137.6,0.68]
[1763454189612,13.00811191,137.62,137.57,0.68]
[1763454189856,13.00811191,137.62,137.58,0.68]
[1763454190165,18.12096,137.64,137.57,13.00811191]
[1763454190166,13.00811191,137.6,137.57,0.68]
[1763454190651,13.00811191,137.6,137.44,6.03710524]
[1763454190952,18.12096,137.57,137.52,0.68]
[1763454191263,13.00811191,137.54,137.52,0.68]
[1763454192342,13.00811191,137.54,137.49,0.1]
[1763454192343,13.00811191,137.54,137.49,0.77]
[1763454192552,13.00811191,137.52,137.49,0.77]
[1763454193251,13.00811191,137.51,137.49,0.77]
[1763454194464,13.00811191,137.52,137.49,0.77]
[1763454194660,13.00811191,137.5,137.49,0.1]
[1763454194865,22.7969396,137.5,137.49,0.1]
[1763454195177,18.12096,137.53,137.49,0.1]
[1763454195345,18.12096,137.53,137.49,0.77]
[1763454195346,13.00811191,137.51,137.49,0.77]
[1763454195548,13.00811191,137.5,137.49,0.1]
[1763454195761,31.12907191,137.5,137.49,0.1]
[1763454198964,22.7969396,137.5,137.49,0.1]
[1763454199272,35.80505151,137.5,137.49,0.1]
[1763454199673,18.78499438,137.59,137.49,0.1]
[1763454199674,18.12096,137.51,137.49,0.1]
[1763454199877,13.00811191,137.5,137.49,0.1]
[1763454200180,13.00811191,137.51,137.5,0.69]
[1763454200378,31.12907191,137.51,137.5,0.69]
[1763454200573,31.12907191,137.51,137.49,0.1]
[1763454200872,13.00811191,137.56,137.5,0.69]
[1763454201451,13.00811191,137.55,137.5,0.69]
[1763454201651,13.00811191,137.54,137.5,0.69]
[1763454201872,18.12096,137.55,137.5,0.69]
[1763454201873,13.00811191,137.55,137.5,0.69]
[1763454202058,13.00811191,137.56,137.5,0.69]
[1763454202261,6.0780763,137.65,137.53,13.00811191]
[1763454202557,13.00811191,137.6,137.53,13.00811191]
[1763454202756,13.00811191,137.59,137.54,0.69]
[1763454202968,18.12096,137.6,137.54,0.69]
[1763454203162,13.00811191,137.59,137.54,0.69]
[1763454203671,13.00811191,137.57,137.54,0.69]
[1763454203848,13.00811191,137.59,137.54,0.69]
[1763454204464,13.00811191,137.58,137.54,0.69]
[1763454204667,18.12096,137.6,137.54,0.69]
[1763454204668,13.00811191,137.57,137.54,0.69]
[1763454204853,7.47143644,137.58,137.54,0.69]
[1763454205054,25.59239644,137.59,137.54,0.69]
[1763454205458,18.12096,137.59,137.54,0.69]
[1763454205654,7.47143644,137.6,137.54,8.16143644]
[1763454205873,7.47143644,137.6,137.54,0.69]
[1763454206180,7.47143644,137.59,137.55,0.69]
[1763454207182,7.47143644,137.58,137.55,0.69]
[1763454207855,7.47143644,137.57,137.55,0.69]
[1763454208168,7.47143644,137.57,137.53,0.69]
[1763454208492,7.47143644,137.56,137.53,0.69]
[1763454208693,7.47143644,137.57,137.53,0.69]
[1763454209279,7.47143644,137.54,137.5,0.69]
[1763454209591,7.47143644,137.54,137.51,0.69]
[1763454209792,25.59239644,137.55,137.51,0.69]
[1763454209955,7.47143644,137.54,137.51,0.69]
[1763454210157,7.47143644,137.54,137.49,0.1]
[1763454210158,7.47143644,137.53,137.49,0.79]
[1763454210584,7.47143644,137.54,137.49,0.79]
[1763454211867,7.47143644,137.53,137.49,0.79]
[1763454212786,7.47143644,137.54,137.49,0.79]
[1763454213281,25.59239644,137.55,137.49,0.79]
[1763454213486,7.47143644,137.54,137.49,0.79]
[1763454213700,18.12096,137.55,137.49,0.79]
[1763454213870,7.47143644,137.53,137.49,0.79]
[1763454214386,7.47143644,137.54,137.49,0.79]
[1763454215865,18.12096,137.55,137.49,0.79]
[1763454216090,7.47143644,137.54,137.49,0.79]
[1763454216285,7.47143644,137.52,137.49,0.1]
[1763454216602,7.47143644,137.51,137.49,0.1]
[1763454216805,25.59239644,137.52,137.49,0.1]
[1763454217164,25.59239644,137.52,137.49,0.79]
[1763454217587,25.59239644,137.53,137.49,0.79]
[1763454218368,18.12096,137.53,137.49,0.79]
[1763454219063,25.59239644,137.53,137.49,0.79]
[1763454219863,18.12096,137.53,137.49,0.79]
[1763454220094,7.47143644,137.55,137.49,0.79]
[1763454220263,7.47143644,137.57,137.51,7.47143644]
[1763454220464,7.47143644,137.58,137.52,7.47143644]
[1763454220764,25.59239644,137.58,137.51,7.47143644]
[1763454221171,7.47143644,137.57,137.52,0.69]
[1763454221377,7.47143644,137.55,137.52,0.69]
[1763454222392,7.47143644,137.53,137.5,0.68]
[1763454222574,7.47143644,137.53,137.49,0.1]
[1763454222780,7.47143644,137.52,137.49,0.78]
[1763454223176,7.47143644,137.51,137.49,0.78]
[1763454223397,7.47143644,137.52,137.49,0.78]
[1763454224289,7.47143644,137.51,137.49,0.1]
[1763454224883,15.52283551,137.6,137.5,0.68]
[1763454224884,25.59239644,137.53,137.5,0.68]
[1763454225878,18.12096,137.53,137.5,0.68]
[1763454226278,25.59239644,137.53,137.5,0.68]
[1763454227587,7.47143644,137.52,137.49,0.1]
[1763454227796,18.12096,137.53,137.49,0.78]
[1763454227994,7.47143644,137.52,137.49,0.78]
[1763454228999,25.59239644,137.53,137.49,0.78]
[1763454229391,18.12096,137.53,137.49,0.78]
[1763454229796,7.47143644,137.54,137.49,0.78]
[1763454229976,7.47143644,137.56,137.49,8.25143644]
[1763454230177,9.78882769,137.6,137.5,7.47143644]
[1763454230377,7.47143644,137.56,137.5,8.15143644]
[1763454230604,7.47143644,137.56,137.51,0.68]
[1763454231377,7.47143644,137.55,137.51,0.68]
[1763454231703,18.12096,137.57,137.49,0.1]
[1763454231907,7.47143644,137.54,137.5,0.68]
[1763454232082,7.47143644,137.55,137.5,0.68]
[1763454232978,7.47143644,137.54,137.5,0.68]
[1763454233996,7.47143644,137.55,137.5,0.68]
[1763454234810,18.12096,137.57,137.5,8.15143644]